Workbook

Sheet SOUHRN ROZPOČTU
B2: SOUHRNNÁ SESTAVA ROZPOČTU | I2: =YEAR(TODAY()) -> 2019
B3: Název společnosti
B4: Šedé buňky se počítají automaticky a obecně platí, že by se neměly měnit.
B5: Souhrn zisků a ztrát | C5: Skutečnost za květen | D5: Cíle pro květen | E5: Měsíční odchylka | F5: Skutečnost od začátku roku | G5: Cíle od začátku roku | H5: Odchylka od začátku roku | I5: Poznámky
B6: Výnosy | C6: 1,200,000.00 Kč | D6: 1,100,000.00 Kč | E6: =C6-D6 -> 100,000.00 Kč | F6: 6,200,000.00 Kč | G6: 6,000,000.00 Kč | H6: =F6-G6 -> 200,000.00 Kč | I6: Cíl výnosů za květen jsme překročili o 9 % díky silnějšímu prodeji na západě.
B7: Hrubá marže | C7: 150,000.00 Kč | D7: 160,000.00 Kč | E7: =C7-D7 -> -10,000.00 Kč | F7: 640,000.00 Kč | G7: 750,000.00 Kč | H7: =F7-G7 -> -110,000.00 Kč
B8: Procento hrubé marže | C8: =IF(C6=0,0,C7/C6) -> 12.5% | D8: =IF(D6=0,0,D7/D6) -> 14.5% | E8: =C8-D8 -> -2.0% | F8: =IF(F6=0,0,F7/F6) -> 10.3% | G8: =IF(G6=0,0,G7/G6) -> 12.5% | H8: =F8-G8 -> -2.2%
B9: Prodej u nových produktů | C9: 200,000.00 Kč | D9: 150,000.00 Kč | E9: =C9-D9 -> 50,000.00 Kč | F9: 900,000.00 Kč | G9: 750,000.00 Kč | H9: =F9-G9 -> 150,000.00 Kč
B10: Rozpis prodeje podle oblastí:
B11: Severovýchod | C11: 400,000.00 Kč | D11: 400,000.00 Kč | E11: =C11-D11 -> 0.00 Kč | F11: 2,200,000.00 Kč | G11: 2,000,000.00 Kč | H11: =F11-G11 -> 200,000.00 Kč
B12: Centrální oblast | C12: 400,000.00 Kč | D12: 400,000.00 Kč | E12: =C12-D12 -> 0.00 Kč | F12: 2,400,000.00 Kč | G12: 2,000,000.00 Kč | H12: =F12-G12 -> 400,000.00 Kč
B13: Západ | C13: 400,000.00 Kč | D13: 300,000.00 Kč | E13: =C13-D13 -> 100,000.00 Kč | F13: 1,600,000.00 Kč | G13: 2,000,000.00 Kč | H13: =F13-G13 -> -400,000.00 Kč
B14: Výdaje a marže:
B15: Administrativní výdaje | C15: 100,000.00 Kč | D15: 120,000.00 Kč | E15: =D15-C15 -> 20,000.00 Kč | F15: 500,000.00 Kč | G15: 600,000.00 Kč | H15: =G15-F15 -> 100,000.00 Kč
B16: Provozní zisk (ztráta) před zdaněním | C16: 50,000.00 Kč | D16: 40,000.00 Kč | E16: =C16-D16 -> 10,000.00 Kč | F16: 140,000.00 Kč | G16: 150,000.00 Kč | H16: =F16-G16 -> -10,000.00 Kč
B17: Provozní marže | C17: =IF(C6=0,0,C16/C6) -> 4% | D17: =IF(D6=0,0,D16/D6) -> 4% | E17: =C17-D17 -> 1% | F17: =IF(F6=0,0,F16/F6) -> 2% | G17: =IF(G6=0,0,G16/G6) -> 3% | H17: =F17-G17 -> -0%
B19: Souhrn rozvahy | C19: Skutečnost za květen | D19: Cíle pro květen | E19: Měsíční odchylka | F19: Skutečnost od začátku roku | G19: Cíle od začátku roku | H19: Odchylka od začátku roku | I19: Poznámky
B20: Cashflow na konci období | C20: 35,000.00 Kč | D20: 50,000.00 Kč | E20: =C20-D20 -> -15,000.00 Kč | F20: 35,000.00 Kč | G20: 50,000.00 Kč | H20: =F20-G20 -> -15,000.00 Kč | I20: K výkyvu cashflow došlo kvůli finančnímu urovnání právního sporu s jinou společností 8. května.
B21: Pohledávky | C21: 20,000.00 Kč | D21: 22,000.00 Kč | E21: -2,000.00 Kč | F21: 20,000.00 Kč | G21: 22,000.00 Kč | H21: -2,000.00 Kč
B22: Zásoby | C22: 25,000.00 Kč | D22: 30,000.00 Kč | E22: -5,000.00 Kč | F22: 25,000.00 Kč | G22: 30,000.00 Kč | H22: -5,000.00 Kč
B23: Likvidní aktiva celkem | C23: 75,000.00 Kč | D23: 90,000.00 Kč | E23: -15,000.00 Kč | F23: 75,000.00 Kč | G23: 90,000.00 Kč | H23: -15,000.00 Kč
B24: Aktiva blokovaná v rámci úvěrových závazků | C24: 25,000.00 Kč | D24: 25,000.00 Kč | E24: 0.00 Kč | F24: 25,000.00 Kč | G24: 25,000.00 Kč | H24: 0.00 Kč
B25: Rezerva v rámci úvěrových závazků | C25: =C23-C24 -> 50,000.00 Kč | D25: =D23-D24 -> 65,000.00 Kč | E25: -15,000.00 Kč | F25: =F23-F24 -> 50,000.00 Kč | G25: =G23-G24 -> 65,000.00 Kč | H25: -15,000.00 Kč
B26: Další položky v rozvaze:
B27: Nemovitosti a vybavení | C27: 80,000.00 Kč | D27: 78,000.00 Kč | E27: =C27-D27 -> 2,000.00 Kč | F27: 80,000.00 Kč | G27: 78,000.00 Kč | H27: =F27-G27 -> 2,000.00 Kč | I27: Odchylka v souvislosti s nákupem nových strojů na závodě B.
B28: Závazky | C28: 60,000.00 Kč | D28: 60,000.00 Kč | E28: =D28-C28 -> 0.00 Kč | F28: 60,000.00 Kč | G28: 60,000.00 Kč | H28: =F28-G28 -> 0.00 Kč
B29: Dlouhodobé závazky | C29: 30,000.00 Kč | D29: 31,000.00 Kč | E29: =D29-C29 -> 1,000.00 Kč | F29: 30,000.00 Kč | G29: 31,000.00 Kč | H29: =G29-F29 -> 1,000.00 Kč
B30: Vlastní kapitál | C30: 300,000.00 Kč | D30: 297,500.00 Kč | E30: =C30-D30 -> 2,500.00 Kč | F30: 300,000.00 Kč | G30: 297,500.00 Kč | H30: =F30-G30 -> 2,500.00 Kč
B32: Souhrn provozních metrik | C32: Skutečnost za květen | D32: Cíle pro květen | E32: Měsíční odchylka | F32: Skutečnost od začátku roku | G32: Cíle od začátku roku | H32: Odchylka od začátku roku | I32: Poznámky
B33: Počet vad na 1000 vyrobených zařízení | C33: 2.3 | D33: 1.0 | E33: =D33-C33 -> -1.3 | F33: 1.5 | G33: 1.0 | H33: =F33-G33 -> 0.5 | I33: Problémy s kvalitou kvůli nesprávné aplikaci nátěru na výrobní lince 3; manažer zavedl nové inspekční mechanismy.
B34: Produkční kapacita – jednotky měsíčně | C34: 200,000 | D34: 220,000 | E34: =C34-D34 -> -20,000 | F34: 1,100,000 | G34: 1,150,000 | H34: =F34-G34 -> -50,000
B35: Zbývající počet dnů prodeje | C35: 35 | D35: 25 | E35: =D35-C35 -> -10 | F35: 33 | G35: 25 | H35: =G35-F35 -> -8
B36: Počet nových objednávek | C36: 19 | D36: 15 | E36: =C36-D36 -> 4 | F36: 83 | G36: 75 | H36: =F36-G36 -> 8
B38: Souhrnné porovnání s konkurencí | C38: Váš firemní profil | D38: Konkurent 1 | E38: Konkurent 2 | F38: Konkurent 3 | G38: Konkurent 4 | H38: Jiné | I38: Poznámky
B39: Podíl na trhu | C39: 20.00% | D39: 25.00% | E39: 15.00% | F39: 5.00% | G39: 15.00% | H39: 20.00% | I39: Podíl na trhu se zvýšil díky nárůstu prodeje nových produktů.
B40: Výnosy (od začátku roku) | C40: =F6 -> 6,200,000.00 Kč | D40: 7,000,000.00 Kč | E40: 4,000,000.00 Kč | F40: 1,500,000.00 Kč | G40: 4,000,000.00 Kč | H40: 6,000,000.00 Kč
B41: Nově uvedené produkty (od začátku roku) | C41: 900,000.00 Kč | D41: 500,000.00 Kč | E41: 0.00 Kč | F41: 100,000.00 Kč | G41: 500,000.00 Kč | H41: 0.00 Kč
B42: Počet prodejců v terénu (předpoklad) | C42: 15 | D42: 20 | E42: 15 | F42: 10 | G42: 15 | H42: NENÍ_K_DISPOZICI

Sheet GRAF ZISKŮ A ZTRÁT
B2: SOUHRNNÝ GRAF ZISKŮ A ZTRÁT | I2: ='SOUHRN ROZPOČTU'!I2 -> 2019
B3: ='SOUHRN ROZPOČTU'!B3 -> Název společnosti
B5: V této buňce je pruhový graf zobrazující skutečné hodnoty a cíle pro měsíc a rok.

Sheet GRAF ROZVAHY
B2: SOUHRNNÝ GRAF ROZVAHY | I2: ='SOUHRN ROZPOČTU'!I2 -> 2019
B3: ='SOUHRN ROZPOČTU'!B3 -> Název společnosti
B5: V této buňce je pruhový graf zobrazující měsíční skutečné hodnoty a cíle.
